bitfinex/quotes_ETHUSD_20251214
["timestamp","ask_amount","ask_price","bid_price","bid_amount"]
[1765716687299,0.001,3102.9,3102.8,10.50012773]
[1765716687590,0.001,3102.9,3102.8,10.85025993]
[1765716688499,0.001,3102.9,3102.8,10.50012773]
[1765716689971,0.001,3102.9,3102.8,10.60462373]
[1765716690795,0.001,3102.9,3102.8,11.01012773]
[1765716691391,0.001,3102.9,3102.8,11.00012774]
[1765716692670,0.001,3102.9,3102.8,7.17012774]
[1765716693484,0.001,3102.9,3102.8,7.18012773]
[1765716694086,0.001,3102.9,3102.8,7.17012774]
[1765716695598,0.001,3102.9,3102.8,7.18012773]
[1765716695800,0.001,3102.9,3102.8,6.71462774]
[1765716696018,0.001,3102.9,3102.8,7.19952774]
[1765716696716,0.001,3102.9,3102.8,7.20952773]
[1765716697014,0.001,3103.5,3103.4,0.00999999]
[1765716697202,0.001,3103.5,3103.4,2.02950399]
[1765716697403,0.001,3103.5,3103.4,2.23245439]
[1765716699084,0.001,3103.5,3103.4,6.03520202]
[1765716700521,0.001,3103.8,3103.7,0.00999999]
[1765716700719,0.001,3104.2,3104.0,0.405504]
[1765716700918,0.001,3104.2,3104.1,32.19344873]
[1765716701221,0.001,3104.2,3104.1,37.46371628]
[1765716701826,0.001,3104.2,3104.1,13.12371628]
[1765716703024,0.001,3104.2,3104.1,10.71271628]
[1765716703536,0.001,3104.2,3104.1,8.26371628]
[1765716704238,0.001,3104.2,3104.1,38.26371628]
[1765716704437,0.001,3104.2,3104.1,38.61384848]
[1765716704820,0.001,3104.2,3104.1,42.00684848]
[1765716705836,0.001,3104.2,3104.1,42.43994101]
[1765716706212,0.001,3105.1,3104.4,30.41550399]
[1765716706406,0.001,3105.1,3104.4,32.29403229]
[1765716706606,0.001,3105.1,3104.4,32.77893229]
[1765716707525,0.001,3105.1,3104.4,31.67893229]
[1765716707714,0.001,3105.1,3104.4,27.44293229]
[1765716707915,0.001,3105.1,3104.4,30.66416666]
[1765716708320,0.001,3105.1,3104.4,6.00016666]
[1765716708532,0.001,3105.1,3104.4,28.92192729]
[1765716708747,0.001,3105.1,3104.4,28.90616666]
[1765716709536,0.001,3105.1,3104.4,27.22516666]
[1765716710444,0.001,3105.1,3104.4,36.00016666]
[1765716711028,0.001,3105.1,3104.4,17.91816666]
[1765716711561,0.001,3105.1,3104.4,21.31716666]
[1765716712033,0.001,3105.1,3104.4,12.16716667]
[1765716712856,0.001,3105.1,3104.4,11.76016667]
[1765716714678,0.001,3105.1,3104.4,36.00016666]
[1765716715445,0.001,3105.1,3104.4,36.43325919]
[1765716716462,0.001,3105.1,3104.4,40.26325919]
[1765716716959,0.001,3105.1,3104.4,35.99316666]
[1765716717555,0.001,3105.1,3104.4,39.82016667]
[1765716718472,0.001,3105.1,3104.4,33.24316667]
[1765716718677,0.001,3105.1,3104.4,39.82016667]
[1765716719271,0.001,3105.1,3104.4,33.03116667]
[1765716719669,0.001,3105.1,3104.4,39.82016667]
[1765716720066,0.001,3105.1,3104.4,39.83016666]
[1765716720775,0.001,3105.1,3104.4,15.16616667]
[1765716720978,0.001,3105.1,3104.4,14.60416667]
[1765716721562,0.001,3105.1,3104.4,16.15016667]
[1765716722679,0.001,3105.1,3104.4,40.26325919]
[1765716722980,0.001,3105.1,3104.4,39.82016667]
[1765716723182,0.001,3105.1,3104.4,39.83016666]
[1765716723355,0.001,3105.1,3104.4,40.64374723]
[1765716723563,0.4697,3105.1,3104.4,13.22836667]
[1765716724083,0.4697,3104.8,3104.4,9.33526667]
[1765716724284,0.4697,3104.8,3104.4,9.34526666]
[1765716724584,0.001,3104.8,3104.4,9.81336666]
[1765716725176,0.001,3104.8,3104.4,9.80336667]
[1765716725385,0.001,3104.8,3104.4,9.81336666]
[1765716728172,0.001,3104.8,3104.4,13.20636666]
[1765716728392,0.001,3104.8,3104.4,9.81336666]
[1765716728689,0.001,3104.8,3104.4,9.34526666]
[1765716730593,0.9234,3104.5,3104.4,8.03721366]
[1765716731278,0.9234,3104.5,3104.4,4.20721366]
[1765716731477,0.9234,3104.5,3104.4,3.80170966]
[1765716731891,0.9234,3104.5,3104.4,4.21721365]
[1765716732064,0.9234,3104.5,3104.4,4.20721366]
[1765716732265,0.9234,3104.5,3104.4,4.21721365]
[1765716733193,0.9234,3104.5,3104.4,3.22123437]
[1765716733402,0.9234,3104.5,3104.4,3.81170965]
[1765716734505,0.9234,3104.5,3104.4,3.80170966]
[1765716734720,0.9234,3104.5,3104.4,3.81170965]
[1765716735221,0.9234,3104.5,3104.4,3.80170966]
[1765716736228,0.9234,3104.5,3104.4,3.23123436]
[1765716736399,0.9234,3104.5,3104.4,3.22123437]
[1765716736731,0.9234,3104.5,3104.3,3.83]
[1765716736732,0.9234,3104.5,3104.3,7.05132285]
[1765716737024,0.4761,3104.4,3104.3,7.63181343]
[1765716737232,0.4761,3104.4,3104.3,3.81181342]
[1765716737617,0.4761,3104.4,3104.3,3.80181343]
[1765716737812,0.4761,3104.4,3104.3,3.23133813]
[1765716739231,0.4761,3104.4,3104.3,3.22133814]
[1765716739439,0.4761,3104.4,3104.3,0.00999999]
[1765716741438,0.4761,3104.4,3104.3,3.23133813]
[1765716741806,0.4761,3104.4,3104.3,0.00999999]
[1765716745130,0.4771,3104.4,3104.3,0.00999999]
[1765716745341,0.4771,3104.4,3104.3,3.23133813]
[1765716745965,0.001,3104.4,3104.3,3.23133813]
[1765716746113,0.001,3104.4,3104.3,5.72321017]
[1765716746522,0.001,3104.4,3104.3,6.16804695]
[1765716748126,0.001,3104.4,3104.3,6.96804695]
[1765716752031,0.001,3104.4,3104.3,10.79804695]
[1765716755536,0.001,3104.4,3104.3,10.33744695]
[1765716756279,0.4923,3104.4,3104.3,9.86594695]
[1765716756450,0.924,3104.4,3104.3,9.86594695]
[1765716757044,0.4923,3104.4,3104.3,9.86594695]
[1765716758746,0.001,3104.4,3104.3,10.33744695]
[1765716758945,0.001,3104.4,3104.3,10.79804695]
[1765716759148,0.001,3104.4,3104.3,9.99804695]
[1765716759337,0.001,3104.4,3104.3,10.43113948]
[1765716759541,0.001,3104.4,3104.3,9.99804695]
[1765716763348,0.001,3104.4,3104.3,39.99804695]
[1765716768481,0.001,3104.4,3104.3,43.39104695]
[1765716770591,0.001,3104.4,3104.3,24.67204695]
[1765716770894,0.001,3104.4,3104.3,17.14904695]
[1765716771189,0.001,3104.4,3104.3,9.53744695]
[1765716771861,0.001,3104.4,3104.3,9.99804695]
[1765716772062,0.001,3104.4,3104.3,39.99804695]
[1765716773255,0.001,3104.4,3104.3,15.51104695]
[1765716773497,0.4923,3104.4,3104.3,8.66044295]
[1765716773687,0.924,3104.4,3104.3,8.66044295]
[1765716773986,0.924,3104.4,3104.3,7.06133813]
[1765716774292,0.924,3104.4,3104.3,7.64181342]
[1765716774785,0.924,3104.4,3104.3,8.03731743]
[1765716774986,0.924,3104.4,3104.3,8.04731742]
[1765716777698,0.4923,3104.4,3104.3,8.04731742]
[1765716778295,0.924,3104.4,3104.3,8.04731742]
[1765716778794,0.924,3104.4,3104.3,4.21731742]
[1765716782066,0.4923,3104.4,3104.3,4.21731742]
[1765716782395,0.001,3104.4,3104.3,5.8051013]
[1765716783298,0.4434,3104.4,3104.3,5.33453808]
[1765716784571,0.4434,3104.4,3104.3,9.16453808]
[1765716786802,0.4434,3104.4,3104.3,9.15453809]
[1765716786971,0.4434,3104.4,3104.3,9.16453808]
[1765716787173,0.9213,3104.4,3104.3,9.16453808]
[1765716787404,0.9213,3104.4,3104.3,8.04731742]
[1765716788491,0.9213,3104.4,3104.3,3.80181343]
[1765716788690,0.9213,3104.4,3104.3,3.81181342]
[1765716789096,0.9213,3104.4,3104.2,0.51]
[1765716789305,0.4849,3104.3,3104.2,1.09047529]
[1765716789486,0.4849,3104.3,3104.1,0.002]
[1765716789802,0.438,3104.2,3104.1,0.002]
[1765716790007,0.9159,3104.2,3104.1,0.002]
[1765716790309,0.9159,3104.2,3104.1,3.22354569]
[1765716790506,0.9159,3104.2,3104.1,0.002]
[1765716791592,1.32971621,3104.2,3104.1,0.002]
[1765716792095,0.9159,3104.2,3104.1,0.002]
[1765716792476,4.13734191,3104.2,3104.1,0.002]
[1765716792693,0.9159,3104.2,3104.1,0.002]
[1765716793088,4.43830064,3104.2,3104.1,0.002]
[1765716793404,4.53458873,3104.2,3104.1,0.002]
[1765716793608,5.31991402,3104.2,3104.1,0.002]
[1765716795411,5.82991402,3104.2,3104.1,0.002]
[1765716796914,5.82991402,3104.2,3104.1,0.01199999]
[1765716798895,5.31991402,3104.2,3104.1,0.01199999]
[1765716799713,5.31991402,3104.2,3104.1,0.002]
[1765716800702,5.31991402,3104.2,3104.1,0.01199999]
[1765716800901,5.31991402,3104.2,3104.1,0.002]
[1765716805627,5.31937035,3104.2,3104.1,0.002]
[1765716805993,5.31937035,3104.2,3104.1,0.01199999]
[1765716806923,5.22308226,3104.2,3104.1,0.01199999]
[1765716807094,5.73308226,3104.2,3104.1,0.01199999]
[1765716809430,5.73308226,3104.2,3104.1,0.002]
[1765716809723,5.73308226,3104.2,3104.1,0.01199999]
[1765716809926,5.73308226,3104.2,3104.1,0.002]
[1765716810124,6.31355755,3104.2,3104.1,0.002]
[1765716810920,6.40984564,3104.2,3104.1,0.002]
[1765716812411,6.53886021,3104.2,3104.1,0.002]
[1765716812809,6.53986021,3104.2,3104.1,0.002]
[1765716813928,6.02986021,3104.2,3104.1,0.002]
[1765716814321,6.41084564,3104.2,3104.1,0.002]
[1765716814532,5.05133226,3104.2,3104.1,0.002]
[1765716814699,0.30141506,3104.2,3104.1,0.4803]
[1765716814903,0.30141506,3104.2,3104.1,0.67919999]
[1765716814904,0.001,3104.2,3104.1,0.67919999]
[1765716815101,0.001,3104.2,3104.1,1.15979999]
[1765716815330,0.001,3104.2,3104.1,0.97089999]
[1765716815629,0.001,3104.2,3104.1,0.49029999]
[1765716816228,0.001,3104.2,3104.1,0.97089999]
[1765716816434,0.492,3104.2,3104.1,0.01199999]
[1765716816596,1.22441506,3104.2,3104.1,0.01199999]
[1765716818099,4.89053478,3104.2,3104.1,0.002]
[1765716819108,4.98682287,3104.2,3104.1,0.002]
[1765716819633,5.56729816,3104.2,3104.1,0.002]
[1765716819838,6.53491056,3104.2,3104.0,0.002]
[1765716820046,1.64458118,3104.1,3104.0,0.002]
[1765716820540,4.86612687,3104.1,3104.0,0.002]
[1765716822240,4.90639619,3104.1,3104.0,0.002]
[1765716823736,4.86612687,3104.1,3104.0,0.002]
[1765716825543,5.03541617,3104.1,3104.0,0.002]
[1765716826044,4.99514685,3104.1,3104.0,0.002]
[1765716826549,5.57562214,3104.1,3104.0,0.002]
[1765716826753,0.58047529,3104.0,3103.1,0.00999999]
[1765716827050,1.45381506,3103.9,3103.1,0.00999999]
[1765716827252,0.30041506,3103.8,3103.1,0.00999999]
[1765716827457,0.30041506,3103.7,3103.1,0.00999999]
[1765716827648,6.44433702,3103.5,3103.1,0.00999999]
[1765716827841,0.58728809,3103.2,3103.1,0.00999999]
[1765716828152,0.30041506,3103.2,3103.1,0.00999999]
[1765716828352,3.22206469,3103.6,3103.5,0.00999999]
[1765716828575,0.30112298,3103.6,3103.5,0.00999999]
[1765716828726,3.97428767,3103.6,3103.5,0.00999999]
[1765716829055,4.80064465,3103.6,3103.5,0.00999999]
[1765716830054,0.30112298,3103.6,3103.5,0.96889999]
[1765716831360,0.30112298,3103.6,3103.5,0.48829999]
[1765716831546,0.30112298,3103.6,3103.5,0.96889999]
[1765716831753,0.30112298,3103.6,3103.5,0.48829999]
[1765716833340,3.96398767,3103.6,3103.5,0.00999999]
[1765716833547,5.19437232,3103.6,3103.3,0.00999999]
[1765716833740,0.30112298,3103.5,3103.3,0.00999999]
[1765716833946,0.30572298,3103.4,3103.3,0.00999999]
[1765716834632,0.30572298,3103.4,3103.1,0.00999999]
[1765716834831,0.30112298,3103.3,3103.1,0.00999999]
[1765716835061,0.30112298,3103.2,3103.1,0.00999999]
[1765716835266,3.523573,3103.3,3103.1,0.00999999]
[1765716835446,0.30112298,3103.2,3103.1,0.00999999]
[1765716835830,0.30112298,3103.2,3103.1,0.48829999]
[1765716836484,0.74192298,3103.2,3103.1,0.00999999]
[1765716836758,1.09428028,3103.2,3103.1,0.00999999]
[1765716837164,0.65348028,3103.2,3103.1,0.49419999]
[1765716837367,0.3523573,3103.2,3103.1,0.49419999]
[1765716837534,0.30112298,3103.2,3103.1,0.49419999]
[1765716837733,0.30112298,3103.3,3103.1,0.49419999]
[1765716837945,0.30112298,3103.2,3103.1,0.49419999]
[1765716838146,0.30112298,3103.3,3103.1,0.49419999]
[1765716838340,0.30112298,3103.2,3103.1,0.49419999]
[1765716838545,3.52349981,3103.3,3103.1,0.49419999]
[1765716838765,0.30112298,3103.2,3103.1,0.49419999]
[1765716838947,0.30112298,3103.2,3103.1,0.15449999]
[1765716839266,0.30112298,3103.2,3103.1,1.11739999]
[1765716839763,0.30112298,3103.2,3103.1,0.63869999]
[1765716839964,0.30112298,3103.2,3103.1,0.49419999]
[1765716840163,3.91676084,3103.2,3103.1,0.49419999]
[1765716840363,4.36026084,3103.2,3102.9,0.002]
[1765716840562,4.36026084,3103.2,3102.9,0.01199999]
[1765716840563,0.0046,3103.0,3102.9,0.01199999]
[1765716840943,0.4629,3103.0,3102.9,0.002]
[1765716841152,0.0046,3103.0,3102.9,0.002]
[1765716841769,0.0046,3103.0,3102.9,0.01199999]
[1765716841770,3.5284859,3103.0,3102.9,0.01199999]
[1765716841969,4.3493581,3103.0,3102.9,0.01199999]
[1765716842265,4.3493581,3103.0,3102.9,0.002]
[1765716843574,4.3493581,3103.0,3102.9,0.01199999]
[1765716844273,4.3493581,3103.0,3102.9,0.002]
[1765716844462,4.3493581,3103.0,3102.9,0.01199999]
[1765716844770,4.3493581,3103.0,3102.9,0.002]
[1765716846257,4.3493581,3103.0,3102.9,0.01199999]
[1765716847072,4.3493581,3103.0,3102.9,0.002]
[1765716847670,4.3493581,3103.0,3102.9,0.01199999]
[1765716848249,4.3493581,3103.0,3102.9,0.002]
[1765716848549,4.3493581,3103.0,3102.9,0.01199999]
[1765716848883,4.3493581,3103.0,3102.9,0.002]
[1765716849042,4.3493581,3103.0,3102.9,0.01199999]
[1765716849242,4.3493581,3103.0,3102.9,0.002]
[1765716849672,4.3493581,3103.0,3102.9,0.01199999]
[1765716850566,4.8076581,3103.0,3102.9,0.002]
[1765716851158,4.3493581,3103.0,3102.9,0.002]
[1765716851353,4.8593581,3103.0,3102.9,0.002]
[1765716852175,5.3176581,3103.0,3102.9,0.002]
[1765716852474,4.8593581,3103.0,3102.9,0.002]
[1765716854882,5.3176581,3103.0,3102.9,0.002]
[1765716856053,4.8076581,3103.0,3102.9,0.002]
[1765716856281,5.3176581,3103.0,3102.9,0.002]
[1765716861101,4.8593581,3103.0,3102.9,0.002]
[1765716861968,5.3176581,3103.0,3102.9,0.002]
[1765716862167,4.8593581,3103.0,3102.9,0.002]
[1765716864202,0.30119818,3103.0,3102.9,0.97489999]
[1765716864492,0.30134659,3103.5,3103.4,0.00999999]
[1765716864859,0.30134659,3103.5,3103.4,0.4842]
[1765716865060,0.30134659,3103.5,3103.4,0.97289999]
[1765716868780,0.30134659,3103.5,3103.4,4.19517233]
[1765716870101,0.30134659,3103.5,3103.4,0.97289999]
[1765716871291,0.30134659,3103.8,3103.4,0.97289999]
[1765716871490,0.30134659,3103.7,3103.4,0.97289999]
[1765716871799,0.30134659,3103.6,3103.4,0.97289999]
[1765716872097,0.30134659,3103.5,3103.4,0.97289999]
[1765716872266,0.30134659,3103.8,3103.4,0.97289999]
[1765716872463,0.30134659,3103.7,3103.4,0.97289999]
[1765716872663,0.30134659,3103.6,3103.4,0.97289999]
[1765716872893,0.30134659,3103.5,3103.4,0.97289999]
[1765716873189,0.30134659,3103.8,3103.4,0.97289999]
[1765716873391,0.30134659,3103.7,3103.4,0.97289999]
[1765716873565,0.30134659,3103.6,3103.4,0.97289999]
[1765716873767,0.30134659,3103.5,3103.4,0.97289999]
[1765716873966,0.30134659,3103.8,3103.4,0.97289999]
[1765716874168,0.30134659,3103.7,3103.4,0.97289999]
[1765716874369,0.30134659,3103.6,3103.4,0.97289999]
[1765716874668,0.30134659,3103.7,3103.4,0.97289999]
[1765716874869,0.30134659,3103.6,3103.4,0.97289999]
[1765716875065,0.30134659,3103.7,3103.4,0.97289999]
[1765716875265,0.30134659,3103.6,3103.4,0.97289999]
[1765716875486,0.30134659,3103.7,3103.4,0.97289999]
[1765716875679,0.30134659,3103.6,3103.4,0.97289999]
[1765716875861,0.30134659,3103.7,3103.4,4.19516017]
[1765716876075,0.30134659,3103.6,3103.5,0.4963]
[1765716876285,0.30134659,3103.7,3103.5,0.4963]
[1765716876598,0.30134659,3103.7,3103.4,0.48869999]
[1765716876599,0.73464659,3103.6,3103.4,0.00999999]
[1765716876982,0.30134659,3103.6,3103.4,0.00999999]
[1765716878098,0.4333,3103.5,3103.4,0.00999999]
[1765716878398,0.4333,3103.5,3103.2,3.22243331]
[1765716878607,0.4807,3103.5,3103.4,0.00999999]
[1765716879011,0.4337,3103.5,3103.2,3.22243331]
[1765716879185,0.4337,3103.5,3103.4,0.00999999]
[1765716879381,0.9599675,3103.5,3103.4,0.00999999]
[1765716879605,6.44454468,3103.4,3102.9,0.002]
[1765716879775,0.0043,3103.0,3102.9,0.002]
[1765716879979,0.81515555,3103.0,3102.9,0.002]
[1765716880182,1.29635555,3103.0,3102.9,0.002]
[1765716882216,4.51904327,3103.0,3102.9,0.002]
[1765716882513,5.29320544,3103.0,3102.9,0.002]
[1765716885904,4.73320544,3103.0,3102.9,0.002]
[1765716886078,5.67220544,3103.0,3102.9,0.002]
[1765716886606,5.71248903,3103.0,3102.9,0.002]
[1765716887505,5.67220544,3103.0,3102.9,0.002]
[1765716892414,5.67220544,3103.0,3102.9,0.01199999]
[1765716893483,5.16220544,3103.0,3102.9,0.002]
[1765716893680,1.45831772,3103.0,3102.9,0.01199999]
[1765716893879,4.41684327,3103.0,3102.9,0.01199999]
[1765716894579,4.89754327,3103.0,3102.9,0.01199999]
[1765716895279,1.67485555,3103.0,3102.9,0.01199999]
[1765716895606,1.19415555,3103.0,3102.9,0.01199999]
[1765716895997,0.25515555,3103.0,3102.9,0.47319999]
[1765716897380,0.25515555,3103.0,3102.9,0.96439999]
[1765716897585,0.25515555,3103.0,3102.9,0.47319999]
[1765716899815,0.25515555,3103.0,3102.9,0.4632]
[1765716900016,0.25515555,3103.0,3102.9,0.47319999]
[1765716900418,0.25515555,3103.0,3102.9,4.18719157]
[1765716900585,0.25515555,3103.2,3103.1,0.00999999]
[1765716900792,0.25515555,3103.3,3103.1,0.00999999]
[1765716900992,0.25515555,3103.2,3103.1,0.19869999]
[1765716901214,0.25515555,3103.5,3103.4,0.00999999]
[1765716901688,0.25515555,3103.5,3103.4,0.47119999]
[1765716902015,0.25515555,3103.5,3103.4,4.18467233]
[1765716902321,0.25515555,3103.5,3103.4,0.96239999]
[1765716902623,0.25515555,3103.5,3103.4,4.18467233]
[1765716903295,0.25515555,3103.5,3103.4,0.96239999]
[1765716905219,0.25515555,3103.5,3103.4,0.47119999]
[1765716905418,0.70525555,3103.5,3103.2,3.222477]
[1765716905591,0.4501,3103.5,3103.4,0.00999999]
[1765716905795,0.75105896,3103.5,3103.4,0.00999999]
[1765716906007,0.30095896,3103.5,3103.4,0.47119999]
[1765716907721,0.30095896,3103.5,3103.4,3.69347233]
[1765716907923,0.30095896,3103.5,3103.4,4.87625827]
[1765716908699,0.30095896,3103.5,3103.4,1.65398593]
[1765716909025,0.30095896,3103.5,3103.4,0.96239999]
[1765716910200,0.30095896,3103.5,3103.4,0.47119999]
[1765716910402,0.30195896,3103.5,3103.4,0.47119999]
[1765716910825,0.30195896,3103.5,3103.4,3.69347233]
[1765716911294,0.30195896,3103.5,3103.4,0.47119999]
[1765716913133,0.001,3103.5,3103.4,0.47119999]
[1765716913347,0.001,3103.5,3103.4,3.69347233]
[1765716913506,0.30195896,3103.5,3103.4,3.69347233]
[1765716913707,0.001,3103.5,3103.4,4.18467233]
[1765716914105,0.30195896,3103.5,3103.4,4.18467233]
[1765716914323,0.001,3103.5,3103.4,4.18467233]
[1765716914940,0.30195896,3103.5,3103.4,4.18467233]
[1765716915251,0.001,3103.5,3103.4,4.18467233]
[1765716915610,0.30195896,3103.5,3103.4,4.18467233]
[1765716915906,0.001,3103.5,3103.4,4.18467233]
[1765716916102,0.001,3103.5,3103.4,3.69347233]
[1765716916308,0.30195896,3103.5,3103.4,0.47119999]
[1765716916635,0.001,3103.5,3103.4,3.69347233]
[1765716917011,0.30195896,3103.5,3103.4,0.47119999]
[1765716917217,0.001,3103.5,3103.4,3.69347233]
[1765716917511,0.001,3103.5,3103.4,3.68347234]
[1765716917705,0.30195896,3103.5,3103.4,4.18467233]
[1765716917901,0.001,3103.5,3103.4,4.18467233]
[1765716918340,0.30195896,3103.5,3103.4,4.18467233]
[1765716918523,0.30195896,3103.5,3103.4,4.92537718]
[1765716918524,0.001,3103.5,3103.4,4.92537718]
[1765716921937,0.001,3103.5,3103.4,4.43417718]
[1765716922144,0.001,3103.5,3103.4,4.18467233]
[1765716924738,0.9017,3103.5,3103.0,1.0032]
[1765716924944,0.9017,3103.5,3103.3,0.00999999]
[1765716924945,0.30954393,3103.4,3103.3,0.00999999]
[1765716925426,0.77434393,3103.4,3103.3,0.00999999]
[1765716927158,0.30954393,3103.4,3103.3,0.00999999]
[1765716928946,0.30954393,3103.4,3103.3,0.47949999]
[1765716928947,0.30114393,3103.4,3103.3,0.47949999]
[1765716929450,0.72644393,3103.4,3103.3,0.00999999]
[1765716930649,0.30114393,3103.4,3103.3,4.17347617]
[1765716933457,0.30114393,3103.4,3103.3,4.93156216]
[1765716935654,0.30114393,3103.4,3103.3,4.45996216]
[1765716935854,0.30114393,3103.4,3103.3,4.93156216]
[1765716937456,0.30114393,3103.4,3103.3,4.17347617]
[1765716937962,0.30114393,3103.4,3103.3,3.69187618]
[1765716938129,0.30114393,3103.4,3103.3,3.70187617]
[1765716938329,0.30114393,3103.4,3103.3,3.69187618]
[1765716938531,0.76394393,3103.4,3103.3,3.22237618]
[1765716938732,0.76394393,3103.4,3103.2,3.22244621]
[1765716938934,0.30564393,3103.3,3103.1,3.22254445]
[1765716939132,0.3019054,3103.2,3103.1,3.22254445]
[1765716939735,0.3019054,3103.2,3103.1,3.69204445]
[1765716944157,0.7389054,3103.2,3103.0,3.22464521]
[1765716944468,0.437,3103.2,3103.1,3.22258386]
[1765716944639,0.30194923,3103.2,3103.1,3.22258386]
[1765716945246,0.73934923,3103.2,3103.1,3.22258386]
[1765716945447,0.73934923,3103.2,3103.0,0.002]
[1765716945651,0.78594923,3103.1,3103.0,0.002]
[1765716948347,1.24741632,3103.1,3103.0,0.002]
[1765716948840,0.78594923,3103.1,3103.0,0.01199999]
[1765716949060,0.78594923,3103.1,3103.0,0.002]
[1765716949263,4.00853309,3103.1,3103.0,0.002]
[1765716949672,4.00853309,3103.1,3103.0,0.01199999]
[1765716951377,0.78594923,3103.1,3103.0,0.002]
[1765716951678,0.7634251,3103.1,3103.0,0.002]
[1765716951877,1.7104251,3103.1,3103.0,0.002]
[1765716952276,2.1896251,3103.1,3103.0,0.002]
[1765716952579,5.41220896,3103.1,3103.0,0.002]
[1765716954477,2.1896251,3103.1,3103.0,0.002]
[1765716955183,2.1896251,3103.1,3103.0,0.01199999]
[1765716955777,2.1896251,3103.1,3103.0,0.002]
[1765716956075,2.1896251,3103.1,3103.0,0.01199999]
[1765716956259,2.28591319,3103.1,3103.0,0.01199999]
[1765716956660,1.7104251,3103.1,3103.0,0.01199999]
[1765716957563,5.49509705,3103.1,3103.0,0.01199999]
[1765716957883,5.49509705,3103.1,3103.0,0.002]
[1765716958054,5.62413784,3103.1,3103.0,0.002]
[1765716959275,5.62413784,3103.1,3103.0,0.01199999]
[1765716959481,5.62413784,3103.1,3103.0,0.002]
[1765716960882,5.62413784,3103.1,3103.0,0.01199999]
[1765716961067,5.62513784,3103.1,3103.0,0.002]
[1765716961382,2.40255398,3103.1,3103.0,0.002]
[1765716961553,1.94107811,3103.1,3103.0,0.002]
[1765716963297,5.16366197,3103.1,3103.0,0.002]
[1765716963987,1.94107811,3103.1,3103.0,0.01199999]
[1765716964351,5.16366197,3103.1,3103.0,0.01199999]
[1765716964783,1.94107811,3103.1,3103.0,0.01199999]
[1765716965357,5.16366197,3103.1,3103.0,0.01199999]
[1765716965688,1.94107811,3103.1,3103.0,0.01199999]
[1765716966887,5.16366197,3103.1,3103.0,0.01199999]
[1765716967190,5.16366197,3103.1,3103.0,0.002]
[1765716967392,6.01189645,3103.1,3103.0,0.01199999]
[1765716969591,1.2802245,3103.1,3103.0,0.47309999]
[1765716969887,1.39269002,3103.1,3103.0,0.01199999]
[1765716970095,0.94199002,3103.1,3103.0,0.01199999]
[1765716970463,0.94199002,3103.1,3103.0,0.47309999]
[1765716970786,0.43199002,3103.1,3103.0,0.94039999]
[1765716970990,0.88269002,3103.1,3103.0,0.01199999]
[1765716971789,4.10527388,3103.1,3103.0,0.01199999]
[1765716972661,5.36426852,3103.1,3103.0,0.01199999]
[1765716973586,0.88269002,3103.1,3103.0,0.01199999]
[1765716976596,0.97897811,3103.1,3103.0,0.01199999]
[1765716976995,0.97897811,3103.1,3103.0,0.002]
[1765716977193,4.20156197,3103.1,3103.0,0.01199999]
[1765716977886,4.66716197,3103.1,3103.0,0.01199999]
[1765716978293,1.44457811,3103.1,3103.0,0.01199999]
[1765716978463,0.97897811,3103.1,3103.0,0.01199999]
[1765716978672,1.44457811,3103.1,3103.0,0.01199999]
[1765716978861,0.97897811,3103.1,3103.0,0.01199999]
[1765716979065,4.66716197,3103.1,3103.0,0.01199999]
[1765716980094,5.52077349,3103.1,3103.0,0.002]
[1765716981400,5.52077349,3103.1,3103.0,0.01199999]
[1765716981790,1.89188963,3103.1,3103.0,0.01199999]
[1765716982096,5.57657349,3103.1,3103.0,0.01199999]
[1765716982295,5.4802854,3103.1,3103.0,0.01199999]
[1765716982669,2.25770154,3103.1,3103.0,0.01199999]
[1765716983496,2.25770154,3103.1,3103.0,0.002]
[1765716983497,5.4802854,3103.1,3103.0,0.002]
[1765716983686,5.4802854,3103.1,3103.0,0.01199999]
[1765716984084,1.28560154,3103.1,3103.0,0.47309999]
[1765716984285,0.94199002,3103.1,3103.0,0.47309999]
[1765716984486,0.94199002,3103.1,3103.0,0.94039999]
[1765716985278,0.43199002,3103.1,3103.0,0.47309999]
[1765716985468,0.94199002,3103.1,3103.0,0.94039999]
[1765716986499,0.43199002,3103.1,3103.0,0.94039999]
[1765716988172,0.43215982,3103.1,3103.0,0.47309999]
[1765716988406,4.11594368,3103.1,3103.0,0.01199999]
[1765716988583,4.91040567,3103.1,3103.0,0.01199999]
[1765716989401,1.22662181,3103.1,3103.0,0.50259999]
[1765716989580,0.43215982,3103.1,3103.0,0.50259999]
[1765716990201,3.65474368,3103.1,3103.0,0.50259999]
[1765716990497,4.11594603,3103.1,3103.0,0.01199999]
[1765716990674,0.89336217,3103.1,3103.0,0.01199999]
[1765716991004,4.11594603,3103.1,3103.0,0.01199999]
[1765716991298,0.89336217,3103.1,3103.0,0.01199999]
[1765716991703,4.11594603,3103.1,3103.0,0.01199999]
[1765716992103,4.95592849,3103.1,3103.0,0.01199999]
[1765716992399,5.41122849,3103.1,3103.0,0.01199999]
[1765716996481,4.95592849,3103.1,3103.0,0.01199999]
[1765716997079,5.41122849,3103.1,3103.0,0.01199999]
[1765716998623,1.73334463,3103.1,3103.0,0.50259999]
[1765716998908,1.36843272,3103.1,3103.0,0.50259999]
[1765716999681,4.59101658,3103.1,3103.0,0.50259999]
[1765717000809,4.59101658,3103.1,3103.0,0.01199999]
[1765717000982,5.05211658,3103.1,3103.0,0.01199999]
[1765717001311,5.50741658,3103.1,3103.0,0.01199999]
[1765717001491,5.50741658,3103.1,3103.0,0.002]
[1765717002013,6.01741658,3103.1,3103.0,0.01199999]
[1765717003514,6.01741658,3103.1,3103.0,0.002]
[1765717008622,6.59789187,3103.1,3103.0,0.002]
[1765717012319,6.08789187,3103.1,3103.0,0.002]
[1765717012516,6.59789187,3103.1,3103.0,0.002]
[1765717015616,6.59789187,3103.1,3102.8,0.002]
[1765717015617,1.05097529,3103.0,3102.8,0.002]
[1765717015794,1.95206704,3102.9,3102.8,0.002]
[1765717015993,2.41496704,3102.9,3102.8,0.002]
[1765717016208,2.54402906,3102.9,3102.8,0.002]
[1765717016423,6.34729593,3102.9,3102.8,0.002]
[1765717018122,6.75279993,3102.9,3102.8,0.002]
[1765717020425,0.98597929,3102.8,3102.7,0.002]
[1765717020602,2.90724352,3102.8,3102.7,0.002]